bitfinex-derivatives/quotes_ETHF0:USTF0_20260226
["timestamp","ask_amount","ask_price","bid_price","bid_amount"]
[1772086524428,8.65657516,2072.9,2072.1,2.7298765]
[1772086524925,8.65657516,2072.9,2072.2,2.7298765]
[1772086526428,12.04422436,2072.6,2072.2,2.7298765]
[1772086526727,1.84357516,2072.9,2072.2,2.7298765]
[1772086527432,0.00460354,2073.0,2072.2,2.7298765]
[1772086528326,2.67107676,2073.4,2072.4,1.76012212]
[1772086528627,2.66015775,2073.5,2072.6,2.93822454]
[1772086528826,9.48515775,2073.6,2072.6,2.93822454]
[1772086529427,2.6507732,2073.5,2072.6,2.93822454]
[1772086529829,0.0061356,2073.6,2072.6,2.93822454]
[1772086530025,2.64792789,2073.6,2072.6,2.93822454]
[1772086531326,2.64792789,2073.6,2072.7,2.93822454]
[1772086531533,0.0061356,2073.6,2072.8,2.93822454]
[1772086531733,0.0061356,2073.6,2073.0,2.93822454]
[1772086532225,2.63842387,2073.6,2073.0,2.93822454]
[1772086533734,0.0061356,2073.6,2073.0,2.93822454]
[1772086534927,2.64814061,2074.0,2073.1,3.36838128]
[1772086535932,2.6541589,2074.0,2073.1,3.36838128]
[1772086538534,2.6541589,2074.0,2073.2,3.36838128]
[1772086540434,0.00601829,2074.0,2073.2,3.36838128]
[1772086541334,0.00601829,2074.0,2073.4,3.36838128]
[1772086544138,0.00601829,2074.0,2073.5,3.36838128]
[1772086544335,0.00601829,2074.0,2073.5,3.37187218]
[1772086544537,2.56734727,2074.5,2073.6,3.36838128]
[1772086544840,2.56734727,2074.5,2073.7,3.36838128]
[1772086545037,2.56734727,2074.5,2073.8,3.36838128]
[1772086545443,2.57328737,2074.5,2073.8,3.36838128]
[1772086548942,2.49731626,2074.3,2073.7,6.99438128]
[1772086549644,2.49741527,2074.1,2073.7,2.64097737]
[1772086549844,2.49741527,2074.1,2073.5,3.37187218]
[1772086551541,2.49741527,2074.1,2073.5,0.0034909]
[1772086552046,9.43622924,2074.2,2073.7,3.36838128]
[1772086552447,2.55322924,2074.1,2073.7,3.36838128]
[1772086553244,9.41489464,2074.2,2073.7,3.36838128]
[1772086553545,2.53189464,2074.1,2073.5,3.37187218]
[1772086560750,2.53189464,2074.1,2073.5,0.0034909]
[1772086560945,2.53189464,2074.1,2073.2,9.65177569]
[1772086561144,2.53189464,2074.1,2073.2,3.33277569]
[1772086561444,2.40900279,2073.9,2073.2,3.33277569]
[1772086561641,2.40900279,2073.7,2073.0,3.33277569]
[1772086561844,2.40900279,2073.7,2073.0,3.33650209]
[1772086562446,2.40900279,2073.7,2072.7,3.33277569]
[1772086562651,1.17193706,2073.4,2072.4,3.33277569]
[1772086562847,2.4135678,2073.2,2072.4,3.33277569]
[1772086563544,2.4135678,2073.2,2072.4,3.33619237]
[1772086564348,2.38886337,2073.2,2072.4,3.33619237]
[1772086575351,2.32610153,2073.6,2072.4,3.33619237]
[1772086575552,2.32610153,2073.6,2072.6,3.33277569]
[1772086577457,2.30248159,2073.5,2072.6,3.33277569]
[1772086577757,2.30248159,2073.3,2072.6,3.33277569]
[1772086582857,9.24278817,2073.4,2072.6,3.33277569]
[1772086583053,2.20934177,2073.3,2072.6,3.33277569]
[1772086585060,7.021,2073.6,2072.6,3.33277569]
[1772086585260,7.02,2073.6,2072.6,3.33277569]
[1772086586456,2.16062581,2073.5,2072.6,3.33277569]
[1772086590364,9.13897999,2073.6,2072.6,3.33277569]
[1772086590857,2.1191884,2073.5,2072.7,3.30575581]
[1772086594167,2.06943621,2073.9,2072.9,3.08275289]
[1772086594457,2.13496861,2073.8,2073.0,3.08275289]
[1772086606775,4.28499738,2074.3,2073.0,3.08275289]
[1772086606776,2.03145773,2074.2,2073.1,3.08275289]
[1772086607073,2.01921466,2074.1,2073.1,3.08275289]
[1772086607473,2.01921466,2074.1,2073.2,3.08275289]
[1772086608271,9.08821466,2074.1,2073.2,3.08275289]
[1772086608466,9.04662207,2074.5,2073.4,3.08275289]
[1772086608671,1.97268197,2074.3,2073.4,3.08275289]
[1772086612079,1.97225903,2074.1,2073.4,3.08275289]
[1772086612274,1.97225903,2073.9,2073.4,3.08275289]
[1772086612474,1.97225903,2073.9,2073.3,3.08275289]
[1772086613977,1.97225903,2073.9,2073.0,3.08275289]
[1772086619284,1.97225903,2073.9,2073.1,3.0689681]
[1772086622686,1.17229775,2073.5,2073.0,3.0689681]
[1772086622889,1.17229775,2073.5,2072.9,3.0689681]
[1772086622890,1.73310684,2073.4,2072.9,3.0689681]
[1772086623991,1.73310684,2073.4,2072.5,3.0689681]
[1772086625588,1.17229775,2073.3,2072.5,3.0689681]
[1772086625789,1.69338549,2073.0,2072.5,3.0689681]
[1772086625992,1.78243847,2072.8,2072.4,0.00341668]
[1772086626187,1.78243847,2072.8,2072.3,3.0689681]
[1772086627193,1.78243847,2072.8,2072.3,3.07471473]
[1772086627987,1.6352662,2072.9,2072.3,3.07471473]
[1772086628192,8.70849862,2073.0,2072.3,3.07471473]
[1772086629489,1.59406978,2072.9,2072.3,3.07471473]
[1772086630700,8.65430361,2073.0,2072.3,3.07471473]
[1772086630896,1.58630361,2073.0,2072.3,3.07471473]
[1772086631198,7.07723242,2073.0,2072.5,3.0689681]
[1772086631593,8.64620786,2073.0,2072.5,3.0689681]
[1772086631799,7.07723242,2073.0,2072.5,3.0689681]
[1772086632701,8.66467006,2073.0,2072.5,3.0689681]
[1772086633201,1.57499536,2072.9,2072.5,3.0689681]
[1772086638001,1.57499536,2072.9,2072.3,3.07471473]
[1772086638303,1.52135832,2072.8,2072.3,3.07471473]
[1772086638500,1.51973255,2072.6,2072.3,0.00574663]
[1772086638702,1.51973255,2072.5,2072.2,3.0689681]
[1772086638998,7.08,2072.6,2072.2,3.0689681]
[1772086639697,7.08,2072.6,2072.2,3.07337609]
[1772086645003,0.00523242,2073.0,2072.2,3.07337609]
[1772086645205,7.084,2072.8,2072.5,3.0689681]
[1772086649012,1.41770424,2072.7,2072.3,2.89950519]
[1772086649205,1.41770424,2072.7,2072.2,2.90391318]
[1772086652608,7.09523242,2073.0,2072.3,2.89950519]
[1772086652808,8.4974555,2073.0,2072.3,2.89950519]
[1772086653217,1.39037305,2072.9,2072.3,2.89950519]
[1772086653516,1.38400285,2073.0,2072.5,2.69863636]
[1772086653819,7.093,2072.9,2072.5,2.69863636]
[1772086654322,8.47291321,2072.9,2072.5,2.69863636]
[1772086660414,1.31213838,2073.0,2072.5,2.69863636]
[1772086660621,7.101,2072.9,2072.5,2.69863636]
[1772086662120,1.28387832,2073.4,2072.5,2.69863636]
[1772086662319,1.28387832,2073.3,2072.6,2.69863636]
[1772086663216,1.28972852,2073.3,2072.6,2.69863636]
[1772086664724,1.28972852,2073.3,2072.3,8.69224293]
[1772086665020,1.28972852,2073.3,2072.3,2.69863636]
[1772086665414,1.25070316,2073.1,2072.3,2.69863636]
[1772086665618,1.25092688,2072.9,2072.3,2.69863636]
[1772086666021,4.04894101,2073.3,2072.3,2.69863636]
[1772086666226,7.116,2073.9,2072.8,2.69863636]
[1772086666418,1.23933117,2073.8,2072.9,2.69863636]
[1772086666821,6.94,2073.7,2072.9,2.69863636]
[1772086667020,7.114,2074.3,2073.1,2.69863636]
[1772086667219,1.22825837,2074.2,2073.2,2.69863636]
[1772086673827,1.20016848,2074.0,2072.5,2.69863636]
[1772086674023,1.18891113,2073.8,2072.5,2.69863636]
[1772086674229,1.18891113,2073.7,2072.5,2.69863636]
[1772086676029,1.16521192,2073.5,2072.5,2.69863636]
[1772086676230,1.16521192,2073.3,2072.5,2.69863636]
[1772086680636,1.06168551,2073.1,2072.5,2.69863636]
[1772086680831,7.134,2073.0,2072.5,2.69863636]
[1772086681533,8.18368688,2073.0,2072.5,2.69863636]
[1772086681831,1.04968688,2072.9,2072.3,2.59471476]
[1772086682424,7.134,2073.0,2072.3,2.59471476]
[1772086682630,8.16318388,2073.0,2072.3,2.59471476]
[1772086683033,1.01700224,2072.9,2072.3,2.59471476]
[1772086690242,1.46159163,2072.5,2071.6,2.59471476]
[1772086690444,0.24123,2072.6,2071.0,21.75122185]
[1772086690445,1.46159163,2072.3,2071.4,2.59471476]
[1772086690941,1.95159225,2072.1,2071.3,2.59471476]
[1772086691146,1.97737686,2071.9,2071.3,2.60089098]
[1772086692841,7.144,2072.0,2071.3,2.60089098]
[1772086693845,0.00424729,2072.1,2071.3,2.60089098]
[1772086694043,7.16924729,2072.1,2071.3,2.60089098]
[1772086694249,0.00424729,2072.1,2071.3,2.60089098]
[1772086695548,1.94077561,2072.0,2071.3,2.60089098]
[1772086696348,1.94077561,2072.0,2071.3,0.00617622]
[1772086696547,1.92965355,2071.8,2071.0,2.59471476]
[1772086696749,1.94105143,2071.6,2071.0,2.59471476]
[1772086697551,1.94105143,2071.6,2071.0,0.00618155]
[1772086698650,1.94105143,2071.6,2070.9,2.59471476]
[1772086699052,1.94105143,2071.6,2070.1,2.59471476]
[1772086699354,1.87116822,2071.4,2070.1,2.59471476]
[1772086699550,1.87152749,2071.2,2069.9,2.59471476]
[1772086699747,1.87152749,2071.2,2069.9,2.59872814]
[1772086699951,1.87152749,2071.0,2069.9,2.59872814]
[1772086700151,1.86097596,2070.8,2069.9,2.59872814]
[1772086700949,7.175,2070.9,2069.9,0.00401338]
[1772086700950,1.84144007,2070.6,2069.9,0.00401338]
[1772086701250,1.82646597,2070.4,2069.6,2.59471476]
[1772086701454,7.175,2070.5,2069.6,2.59471476]
[1772086701651,9.00186355,2070.5,2069.6,2.59471476]
[1772086701850,1.82686355,2070.4,2069.6,2.59471476]
[1772086702052,1.82686355,2070.4,2069.6,2.59954272]
[1772086703456,1.82686355,2070.4,2069.6,0.00482796]
[1772086703757,1.82686355,2070.4,2069.4,2.59471476]
[1772086704057,1.77027254,2070.2,2068.4,2.59471476]
[1772086704358,1.77027254,2070.0,2068.4,2.59471476]
[1772086704560,1.77027254,2070.0,2068.4,2.5997704]
[1772086705448,7.194,2070.2,2068.8,2.59471476]
[1772086705654,1.75728975,2070.2,2068.8,2.59471476]
[1772086706557,7.194,2070.3,2068.8,2.59471476]
[1772086706749,1.65208937,2070.2,2068.8,2.59471476]
[1772086711258,8.856085,2070.3,2069.0,2.46243297]
[1772086711658,7.194,2070.3,2069.0,2.46243297]
[1772086712561,7.194,2070.3,2068.9,0.24166]
[1772086712562,1.6625979,2070.5,2069.2,2.46243297]
[1772086712767,0.0056837,2070.6,2069.2,2.46243297]
[1772086713066,1.64085067,2070.6,2069.2,2.46243297]
[1772086713366,0.0056837,2070.6,2069.4,2.46243297]
[1772086714866,1.6139632,2070.6,2069.4,2.46243297]
[1772086718568,0.0056837,2070.6,2069.4,2.46243297]
[1772086721071,0.0056837,2070.6,2069.6,2.40867366]
[1772086721764,1.539555,2070.6,2069.6,2.40867366]
[1772086722171,1.52358142,2070.2,2069.0,2.40867366]
[1772086722369,0.2415,2070.3,2069.0,2.40867366]
[1772086722370,1.52358142,2070.0,2069.0,2.40867366]
[1772086730778,40.8,2069.9,2069.0,2.40867366]
[1772086730978,1.4107603,2069.8,2069.0,2.40867366]
[1772086732079,1.39139107,2070.0,2069.0,2.40867366]
[1772086736079,40.8,2070.2,2069.0,2.40867366]
[1772086736284,1.4087155,2070.3,2069.1,2.28572669]
[1772086736684,1.41009932,2070.2,2069.1,2.28572669]
[1772086737581,1.41009932,2070.2,2069.2,2.28572669]
[1772086737882,1.40068685,2070.3,2069.2,2.28572669]
[1772086738285,1.40068685,2070.3,2069.3,2.28572669]
[1772086738587,1.40068685,2070.3,2069.1,2.28572669]
[1772086738787,1.39122087,2070.0,2069.1,2.28572669]
[1772086739087,1.39122087,2069.8,2069.1,2.28572669]
[1772086748999,8.58468527,2069.9,2069.1,2.28572669]
[1772086749800,1.30262932,2070.3,2069.2,2.28572669]
[1772086750002,1.30262932,2070.3,2069.3,2.28572669]
[1772086750201,8.58012956,2070.4,2069.4,2.28572669]
[1772086750500,1.30055808,2070.3,2069.4,2.28572669]
[1772086753802,44.81529327,2070.5,2069.4,2.28572669]
[1772086754101,1.26466664,2070.4,2069.5,2.28572669]
[1772086755101,1.26466664,2070.4,2069.4,2.28572669]
[1772086756099,1.22885265,2070.3,2069.4,2.28572669]
[1772086756302,1.22885265,2070.3,2069.1,2.28572669]
[1772086756502,1.22885265,2070.1,2069.1,2.28572669]
[1772086758006,5.20479204,2070.3,2069.1,2.28572669]
[1772086758208,8.52049877,2070.2,2069.2,2.28572669]
[1772086758608,8.52049877,2070.2,2069.3,2.28572669]
[1772086759106,7.331,2070.2,2069.3,2.28572669]
[1772086759304,7.331,2070.2,2069.3,8.27933326]
[1772086759505,40.8,2070.5,2069.5,2.28572669]
[1772086759808,1.18010118,2070.6,2069.6,2.28572669]
[1772086760208,41.98010118,2070.6,2069.6,2.28572669]
[1772086760709,1.14987227,2070.5,2069.6,2.28572669]
[1772086764109,1.11653549,2070.3,2069.6,2.28572669]
[1772086770413,8.32694461,2070.4,2069.6,2.28572669]
[1772086771415,0.97855618,2070.3,2069.6,2.28572669]
[1772086771616,7.362,2070.4,2069.6,2.28572669]
[1772086773317,8.32625868,2070.4,2069.6,2.28572669]
[1772086775415,41.75228191,2070.6,2069.6,2.28572669]
[1772086775721,8.39525648,2070.5,2069.7,2.13682818]
[1772086776020,0.93852501,2070.4,2069.7,2.13682818]
[1772086776920,7.448,2070.5,2069.7,2.13682818]
[1772086777218,0.0056837,2070.6,2069.7,2.13682818]
[1772086777411,0.0056837,2070.6,2069.9,2.13682818]
[1772086777722,0.0056837,2070.6,2069.9,2.14198674]
[1772086779022,7.459,2070.9,2070.0,2.13682818]
[1772086780021,7.46493912,2070.9,2070.0,2.13682818]
[1772086780623,8.37915585,2070.9,2070.0,2.13682818]
[1772086784130,8.37915585,2070.9,2070.1,2.13682818]
[1772086784325,0.896779,2070.8,2070.1,2.13682818]
[1772086789324,8.31103206,2070.9,2070.1,2.13682818]
[1772086790033,8.31103206,2070.9,2070.2,2.13682818]
[1772086791833,7.46493912,2070.9,2070.2,2.13682818]
[1772086793438,8.27168835,2070.9,2070.2,2.13682818]
[1772086794536,0.79914682,2070.8,2070.2,2.13682818]
[1772086798137,0.79914682,2070.8,2069.9,0.00515856]
[1772086798138,0.79914682,2070.8,2070.0,2.17320529]
[1772086798832,0.80582733,2070.8,2070.0,2.17320529]
[1772086799032,0.79520336,2070.8,2070.0,2.17320529]
[1772086800142,7.46493912,2070.9,2070.0,2.17320529]
[1772086800442,8.25025306,2070.9,2070.0,2.17320529]
[1772086800843,0.00593912,2070.9,2070.2,2.17320529]
[1772086802447,0.74760859,2071.3,2070.4,2.17320529]
[1772086803348,0.75385024,2071.3,2070.4,2.17320529]
[1772086808046,0.75385024,2071.3,2070.2,8.16681186]
[1772086808250,0.71438358,2071.1,2070.2,2.17320529]
[1772086808448,0.71438358,2070.9,2070.2,2.17320529]
[1772086809455,0.71438358,2070.9,2070.1,2.17320529]
[1772086811053,8.29313507,2070.8,2070.1,2.17320529]
[1772086811252,7.615,2070.7,2070.1,2.17320529]
[1772086813153,4.04225183,2071.1,2070.1,2.17320529]
[1772086813353,0.00624165,2071.3,2070.6,2.17320529]
[1772086813551,0.00624165,2071.3,2070.6,5.99360657]
[1772086813755,0.00624165,2071.3,2070.7,2.17320529]
[1772086814556,8.30769233,2071.6,2070.7,2.17320529]
[1772086814857,8.31671221,2071.9,2070.9,2.17320529]
[1772086815054,9.94464239,2071.9,2070.9,2.17320529]
[1772086815255,0.68592211,2071.8,2070.9,2.17320529]
[1772086815657,0.69089952,2071.8,2070.9,2.17320529]
[1772086815853,0.00497741,2071.8,2070.9,8.16681186]
[1772086816057,0.00497741,2071.8,2071.1,2.17320529]
[1772086816258,0.68212789,2071.8,2071.1,2.17320529]
[1772086817058,0.71268785,2071.6,2070.9,2.17320529]
[1772086817654,7.626,2071.7,2070.9,2.17320529]
[1772086818354,8.31981653,2071.7,2070.9,2.17320529]
[1772086818960,0.68264308,2071.6,2070.9,2.17320529]
[1772086819361,8.29905218,2071.7,2070.9,2.17320529]
[1772086819961,7.626,2071.7,2070.9,2.17320529]
[1772086822360,8.2906994,2071.7,2070.9,2.17320529]
[1772086822566,0.6646994,2071.6,2070.9,2.17320529]
[1772086826261,0.6646994,2071.6,2070.6,6.326]
[1772086826262,0.6646994,2071.6,2070.5,5.99360657]
[1772086826463,0.6646994,2071.6,2070.6,2.05589955]
[1772086838675,0.42624732,2071.4,2070.5,1.96741602]
[1772086842380,0.3802732,2071.3,2070.5,1.96741602]
[1772086842581,0.3802732,2071.1,2070.5,1.96741602]
[1772086846583,7.98990602,2071.2,2070.5,1.96741602]
[1772086846789,7.675,2071.2,2070.5,1.96741602]
[1772086847186,7.9815487,2071.2,2070.5,1.96741602]
[1772086847391,0.3065487,2071.1,2070.5,1.96741602]
[1772086854495,7.675,2071.2,2070.5,1.96741602]
[1772086857194,7.705,2071.4,2070.5,1.96741602]
[1772086857896,7.705,2071.4,2070.6,1.86618688]
[1772086858197,7.706,2071.7,2070.6,1.86618688]
[1772086858397,0.17677685,2071.6,2070.6,1.86618688]
[1772086859090,7.87184899,2071.7,2070.6,1.86618688]
[1772086859289,0.16584899,2071.6,2070.6,1.86618688]
[1772086862098,4.20810082,2071.6,2070.6,1.86618688]
[1772086862300,0.16791647,2071.5,2070.6,1.86618688]
[1772086865211,7.711,2071.4,2070.6,1.86618688]
[1772086866715,7.711,2071.5,2070.6,1.86618688]
[1772086867511,1.87348715,2071.4,2070.6,1.86618688]
[1772086867909,1.87348715,2071.4,2070.5,1.84562616]
[1772086868117,1.87348715,2071.3,2070.5,1.84562616]
[1772086869816,1.87348715,2071.4,2070.5,1.84562616]
[1772086870212,1.76320405,2070.9,2069.9,0.00515856]
[1772086870412,1.87348715,2070.6,2069.9,0.00515856]
[1772086870610,1.87348715,2070.6,2069.7,0.99880522]
[1772086870814,1.87348715,2070.4,2069.7,0.99880522]
[1772086871015,1.87348715,2070.2,2069.7,0.99880522]
[1772086871520,1.87723297,2070.2,2069.7,1.00469981]
[1772086871922,1.87348715,2069.8,2069.4,1.12215793]
[1772086872912,1.87348715,2069.8,2069.4,1.127375]
[1772086874718,1.87348715,2070.1,2069.4,1.127375]
[1772086875721,0.00374582,2070.2,2069.4,1.127375]
[1772086875925,1.87723297,2070.2,2069.4,1.127375]
[1772086879426,0.00374582,2070.2,2069.4,1.127375]
[1772086879626,9.62148715,2070.4,2069.4,1.127375]
[1772086880326,1.87348715,2070.3,2069.4,1.127375]
[1772086880526,1.87715242,2070.3,2069.4,1.127375]
[1772086882524,1.87348715,2070.7,2069.4,1.127375]
[1772086883523,1.87820102,2070.7,2069.4,1.127375]
[1772086886726,1.87820102,2070.7,2069.6,1.1452967]
[1772086893232,2.05007179,2070.3,2069.4,0.00521707]
[1772086893433,2.05007179,2070.1,2069.4,1.07981915]
[1772086893934,2.05007179,2070.1,2069.4,0.00521707]
[1772086895038,2.05007179,2070.1,2069.4,1.04103509]
[1772086895327,7.893,2070.0,2069.4,1.04103509]
[1772086895529,9.87198464,2070.0,2069.4,1.04103509]
[1772086896534,7.893,2070.0,2069.4,1.04103509]
[1772086896729,9.87298464,2070.3,2069.4,1.04103509]
[1772086898032,1.97898464,2070.2,2069.4,1.04103509]
[1772086898233,7.894,2070.3,2069.4,1.04103509]
[1772086899429,1.97898464,2070.4,2069.4,1.04103509]
[1772086900336,1.97898464,2070.4,2069.5,0.99103617]
[1772086900538,1.97898464,2070.4,2069.6,0.99103617]
[1772086907145,1.97898464,2070.4,2069.7,0.90637966]
[1772086910051,1.97898464,2070.4,2069.6,2.296]
[1772086910752,1.97898464,2070.4,2069.4,0.00521707]
[1772086910952,1.97898464,2070.4,2069.4,0.88399581]
[1772086912653,1.97898464,2070.3,2069.4,0.88399581]
[1772086912853,1.97898464,2070.1,2069.4,0.88399581]
[1772086913949,1.97898464,2070.1,2069.0,0.90874544]
[1772086914955,1.97898464,2070.1,2069.0,0.91426727]
[1772086922852,2.06398899,2069.8,2069.0,0.00552183]
[1772086923254,2.06398899,2069.6,2069.0,0.00552183]
[1772086926951,2.06398899,2069.6,2069.1,0.77400789]
[1772086929759,2.06398899,2069.6,2069.0,0.75984316]
[1772086935258,2.06398899,2069.6,2069.0,0.00552183]
[1772086940364,2.06398899,2069.4,2069.0,0.00552183]
[1772086945167,2.06398899,2069.8,2069.0,2.90214592]
[1772086945371,2.06398899,2069.8,2069.1,0.60062409]
[1772086950568,2.06398899,2069.8,2069.0,2.30152183]
[1772086950765,2.06398899,2069.8,2069.0,1.97127935]
[1772086950968,2.00283899,2069.5,2068.6,7.33183269]
[1772086951170,2.00283899,2069.3,2068.7,0.55107762]
[1772086951966,2.00283899,2069.3,2068.7,0.55630951]
[1772086953974,3.17973971,2069.3,2068.7,0.00523189]
[1772086954175,1.84557816,2069.2,2068.7,0.00523189]
[1772086954364,1.85077152,2069.2,2068.7,0.00523189]
[1772086955171,1.17690072,2069.1,2068.2,6.02869936]
[1772086955373,1.84557816,2069.0,2068.2,1.50999217]
[1772086956174,1.84557816,2069.0,2068.2,1.51498574]
[1772086972592,1.84557816,2069.0,2068.2,0.00499357]
[1772086973584,1.84557816,2069.0,2068.2,1.47828746]
[1772086976297,1.80530716,2069.2,2068.5,1.41623091]
[1772086981103,1.8001138,2069.4,2068.6,1.38194974]
[1772086981599,1.8001138,2069.4,2068.7,1.38156646]
[1772086981900,1.8001138,2069.9,2068.8,1.38156646]
[1772086982096,1.80592306,2069.9,2068.8,1.38156646]
[1772086983098,1.8001138,2069.6,2068.6,1.37039829]
[1772086985403,1.1774619,2069.5,2068.6,1.37039829]
[1772086985599,1.8001138,2069.4,2068.6,1.37039829]
[1772086985802,1.8001138,2069.2,2068.5,7.3789135]
[1772086986107,1.8001138,2069.0,2068.5,6.02869936]
[1772086986306,1.8001138,2069.0,2068.6,1.34368742]
[1772086988306,1.8001138,2069.0,2068.4,12.35669936]
[1772086988506,1.8001138,2069.0,2068.4,13.6751586]
[1772086989107,1.8001138,2069.0,2068.4,15.32143795]
[1772086990007,1.8001138,2069.0,2068.5,1.31165479]
[1772086994111,1.8001138,2069.6,2068.9,2.45559457]
[1772086994416,1.8001138,2069.6,2069.2,2.45559457]
[1772086994606,1.77887419,2069.6,2069.2,1.27813267]
[1772086996413,1.77887419,2069.6,2069.0,1.30917071]
[1772087003816,1.77887419,2069.6,2069.0,2.95545006]
[1772087005014,1.77887419,2069.6,2069.1,1.22678358]
[1772087005408,1.80592306,2069.9,2069.2,1.22678358]
[1772087005815,1.80592306,2069.9,2069.3,1.22646301]
[1772087006518,1.80592306,2069.9,2069.2,6.328]
[1772087006519,1.80592306,2069.9,2069.2,7.54792732]
[1772087007023,7.81194437,2070.7,2069.2,7.54792732]
[1772087007024,1.7962673,2071.7,2070.2,1.20718763]
[1772087007319,1.7962673,2071.7,2070.4,1.20119005]
[1772087007715,1.7962673,2071.6,2070.4,1.20119005]
[1772087007918,1.80209811,2071.6,2070.5,1.20088234]
[1772087008416,1.7962673,2071.5,2070.5,1.20088234]
[1772087008919,1.7962673,2071.4,2070.5,1.20088234]
[1772087009520,1.8962673,2071.0,2070.5,1.20088234]
[1772087010518,1.8962673,2071.0,2070.4,0.00493985]
[1772087010720,1.7962673,2070.8,2070.4,1.41504001]
[1772087010914,1.7962673,2070.8,2069.9,6.328]
[1772087011219,1.7962673,2070.8,2070.0,1.41010016]
[1772087011524,1.7962673,2070.7,2070.0,1.41010016]
[1772087011923,1.7962673,2070.5,2070.0,1.41010016]
[1772087012126,1.7962673,2070.5,2070.0,1.41560015]
[1772087013122,1.7962673,2070.4,2070.0,0.00549999]
[1772087013728,1.90308328,2070.1,2070.0,0.00549999]
[1772087013920,1.90308328,2070.1,2069.7,1.47340057]
[1772087013921,1.90928035,2070.1,2069.7,1.47340057]
[1772087014522,1.90308328,2070.0,2069.6,7.79539528]
[1772087015025,1.90308328,2070.0,2069.7,1.47813558]
[1772087015214,5.36033592,2070.0,2069.6,0.00594401]
[1772087015416,1.90308328,2070.0,2069.0,1.60345544]
[1772087015817,1.90308328,2069.8,2069.0,1.60345544]
[1772087016228,5.36033592,2069.8,2069.0,1.60345544]
[1772087016418,1.90308328,2069.7,2069.0,1.60780946]
[1772087018124,1.90308328,2069.6,2069.0,1.60780946]
[1772087019326,1.90308328,2069.4,2069.0,0.00435402]
[1772087019529,1.90308328,2069.4,2069.0,1.59899758]
[1772087022532,1.90308328,2069.3,2069.0,1.59899758]
[1772087023929,1.90308328,2069.3,2069.0,0.00435402]
[1772087024133,1.90308328,2069.3,2068.6,1.971]
[1772087024529,1.90308328,2068.9,2068.6,1.971]
[1772087024732,1.90308328,2069.6,2068.7,1.55895239]
[1772087025134,1.90308328,2069.3,2068.7,1.5636946]
[1772087025435,40.8,2069.7,2068.7,1.5636946]
[1772087025436,1.90308328,2069.7,2068.9,1.55234645]
[1772087025634,1.90308328,2069.6,2068.9,1.55234645]
[1772087026138,1.90308328,2069.5,2068.9,1.55234645]
[1772087027033,5.36033592,2069.5,2068.9,1.55234645]
[1772087028341,1.90308328,2069.5,2068.9,1.55234645]
[1772087028540,3.45725264,2069.4,2068.9,1.55234645]
[1772087029239,1.90308328,2069.9,2068.9,1.55234645]
[1772087029442,1.90308328,2069.6,2068.9,1.55234645]
[1772087030143,1.00133679,2069.6,2069.0,1.5456262]
[1772087030342,4.45858943,2069.6,2069.0,1.5456262]
[1772087030544,1.00133679,2069.6,2069.0,1.5456262]
[1772087030842,3.45725264,2069.5,2069.0,1.5456262]
[1772087031342,3.45725264,2069.4,2069.0,1.5456262]
[1772087031542,3.45725264,2069.4,2069.1,1.95038943]
[1772087031942,3.45725264,2069.3,2069.1,1.95038943]
[1772087032145,1.90308328,2069.5,2069.1,1.95038943]
[1772087032345,3.45725264,2069.4,2069.1,1.95038943]
[1772087033043,0.12143524,2069.4,2069.1,1.95038943]
[1772087033445,1.90308328,2069.7,2069.1,1.971]
[1772087034047,1.90308328,2069.7,2069.1,2.1897062]
[1772087034349,1.90308328,2069.7,2069.2,0.2187062]
[1772087037045,1.90308328,2069.7,2069.0,1.971]
[1772087040346,1.90308328,2069.7,2069.0,2.21749038]
[1772087040554,1.90308328,2069.7,2069.1,0.24649038]
[1772087041958,1.90308328,2069.7,2069.1,2.21749038]
[1772087043060,1.90308328,2069.7,2069.2,0.23294881]
[1772087044259,1.90308328,2069.7,2069.3,4.20574961]
[1772087044459,0.01288857,2069.7,2069.3,4.20574961]
[1772087045360,2.07980454,2070.1,2069.7,2.04304641]
[1772087046064,2.07980454,2070.1,2069.8,2.04304641]
[1772087047367,1.85105273,2070.1,2069.8,6.05387448]
[1772087047864,2.07360747,2070.7,2069.9,2.04304641]
[1772087048464,2.07700248,2070.7,2069.9,2.04304641]
[1772087048668,2.07700248,2070.7,2070.0,2.04304641]
[1772087049364,2.07337909,2070.7,2069.9,6.329]
[1772087049560,2.07337909,2070.7,2069.7,4.01082807]
[1772087049766,2.07337909,2070.7,2069.7,6.05387448]
[1772087049968,2.07337909,2070.7,2069.6,10.33982807]
[1772087050170,2.07337909,2070.7,2069.4,6.05387448]
[1772087053274,2.07337909,2070.7,2069.5,2.04304641]
[1772087054671,2.07360747,2070.5,2069.5,2.04304641]
[1772087054871,2.07360747,2070.3,2069.5,2.04304641]
[1772087055377,2.07360747,2070.3,2069.5,6.05387448]
[1772087056174,2.07360747,2070.3,2069.5,2.04304641]
[1772087057373,2.07360747,2070.3,2069.4,4.01082807]
[1772087057677,2.07360747,2070.3,2069.3,5.98182807]
[1772087057874,2.07360747,2070.3,2069.3,1.971]
[1772087058676,2.07360747,2070.3,2069.3,5.98182807]
[1772087059479,2.07360747,2070.3,2069.3,4.01082807]
[1772087059980,2.07360747,2070.3,2069.3,6.05387448]
[1772087060181,2.07360747,2070.1,2069.3,6.05387448]
[1772087060382,2.07360747,2070.1,2069.4,2.04304641]
[1772087061381,2.07360747,2070.1,2069.5,2.04304641]
[1772087061581,2.07360747,2070.0,2069.5,2.04304641]
[1772087063176,2.07360747,2070.2,2069.5,2.04304641]
[1772087063380,10.00060747,2070.3,2069.6,2.04304641]
[1772087064485,10.00060747,2070.3,2069.7,2.04304641]
[1772087064682,2.07360747,2070.6,2069.9,2.04304641]
[1772087066483,2.07360747,2070.6,2069.8,5.92167723]
[1772087066784,2.07360747,2070.6,2069.8,1.91192928]
[1772087067184,2.07360747,2070.6,2069.9,1.902572]
[1772087069482,2.07360747,2070.6,2069.7,4.00974795]
[1772087069682,2.07360747,2070.6,2069.7,1.84664927]
[1772087076796,2.07360747,2070.6,2069.8,1.70749621]
[1772087076994,1.8264936,2070.4,2069.8,1.70749621]
[1772087078498,1.8264936,2070.4,2069.6,5.67677406]
[1772087079398,1.8264936,2070.4,2069.7,1.62550346]
[1772087083998,1.8264936,2070.4,2069.6,4.00974795]
[1772087084301,1.8264936,2070.4,2069.6,5.52108075]
[1772087086202,1.8264936,2070.4,2069.7,1.47173156]
[1772087086497,1.8264936,2070.4,2069.7,5.48147951]
[1772087086704,1.8264936,2070.4,2069.8,1.47173156]
[1772087089302,1.8264936,2070.4,2069.9,1.40542594]
[1772087096111,1.8264936,2070.4,2069.7,4.00974795]
[1772087096713,1.50083157,2070.3,2069.4,5.26582152]
[1772087097109,1.50083157,2070.3,2069.4,1.25607357]
[1772087097814,1.50083157,2070.4,2069.7,1.23789085]
[1772087098112,1.50083157,2070.4,2069.8,1.23789085]
[1772087100816,1.50083157,2070.4,2069.9,1.18909344]
[1772087103309,1.50083157,2070.4,2069.7,4.00974795]
[1772087103508,1.50083157,2070.4,2069.6,4.00974795]